[Event "51st Rilton Cup 2023-24"]
[Site "Stockholm"]
[Date "2024.01.05"]
[Round "9.4"]
[White "Malek, Jan"]
[Black "Chasin, Nico"]
[Result "1/2-1/2"]
[ECO "D36"]
[WhiteElo "2434"]
[BlackElo "2444"]
[Annotator "RC"]
[PlyCount "62"]
[EventDate "2023.12.27"]
[EventType "swiss"]
[EventCountry "SWE"]
[SourceTitle "playchess.com"]
[Source "ChessBase"]
[SourceQuality "1"]
[TimeControl "40/5400+30:1800+30"]

1. d4 {[%emt 0:00:02]} Nf6 {[%emt 0:07:32]} 2. c4 {[%emt 0:00:06]} e6 {[%emt 0:00:13]} 3. Nc3 {[%emt 0:00:06]} d5 {[%emt 0:00:26]} 4. cxd5 {[%emt 0:00:07]} exd5 {[%emt 0:00:05]} 5. Bg5 {[%emt 0:00:05]} c6 {[%emt 0:00:08]} 6. e3 {[%emt 0:00:04]} Nbd7 {[%emt 0:00:29]} 7. Bd3 {[%emt 0:00:10]} Be7 {[%emt 0:00:06]} 8. Qc2 {[%emt 0:00:30]} Nh5 {[%emt 0:00:06]} 9. Bxe7 {[%emt 0:00:05]} Qxe7 {[%emt 0:00:04]} 10. Nge2 {[%emt 0:00:11]} Nb6 {[%emt 0:00:44]} 11. O-O {[%emt 0:00:27]} g6 {[%emt 0:00:59]} 12. Rae1 {[%emt 0:00:37]} O-O {[%emt 0:01:18]} 13. Qd2 {[%emt 0:00:07]} Re8 {[%emt 0:01:07]} 14. Nc1 {[%emt 0:00:07]} Be6 {[%emt 0:05:03]} 15. f3 {[%emt 0:01:49]} Nf6 {[%emt 0:00:05]} 16. Qf2 {[%emt 0:05:05]} c5 {[%emt 0:10:21]} 17. Qh4 {[%emt 0:13:18]} Nc4 {[%emt 0:08:00]} 18. b3 {[%emt 0:08:20]} cxd4 {[%emt 0:00:17]} 19. Qxd4 {[%emt 0:00:55]} Na5 {[%emt 0:00:04]} 20. N1e2 {[%emt 0:04:38]} Nc6 {[%emt 0:01:14]} 21. Qh4 {[%emt 0:00:54]} Qc5 {[%emt 0:08:30]} 22. Nd1 {[%emt 0:10:21]} Kg7 {[%emt 0:01:07]} 23. Nd4 {[%emt 0:00:08]} Bd7 {[%emt 0:01:17]} 24. Nxc6 {[%emt 0:02:25]} bxc6 {[%emt 0:00:36]} 25. Qd4 {[%emt 0:00:18]} Qd6 {[%emt 0:00:40]} 26. e4 {[%emt 0:14:22]} c5 {[%emt 0:02:08]} 27. Qb2 {[%emt 0:03:52]} dxe4 {[%emt 0:05:57]} 28. Bxe4 {[%emt 0:02:35]} Rad8 {[%emt 0:01:36]} 29. Nf2 {[%emt 0:00:37]} Bb5 {[%emt 0:01:25]} 30. Rd1 {[%emt 0:00:07]} Qb6 {[%emt 0:00:22]} 31. Rfe1 {[%emt 0:07:22]} c4 {[%emt 0:01:40]} 1/2-1/2

[Event "51st Rilton Cup 2023-24"]
[Site "Stockholm"]
[Date "2024.01.05"]
[Round "9.5"]
[White "Kulaots, Kaido"]
[Black "Bronstein, Or"]
[Result "1/2-1/2"]
[ECO "C42"]
[WhiteElo "2524"]
[BlackElo "2428"]
[Annotator "TA"]
[PlyCount "97"]
[EventDate "2023.12.27"]
[EventType "swiss"]
[EventCountry "SWE"]
[SourceTitle "playchess.com"]
[Source "ChessBase"]
[SourceQuality "1"]
[TimeControl "40/5400+30:1800+30"]

{[%evp 16,97,36,35,37,35,47,38,40,20,19,18,20,15,26,0,0,0,0,0,14,9,14,0,0,0,38,53,39,39,60,47,83,74,70,62,112,112,115,117,95,75,81,3,0,2,62,70,53,60,40,0,0,0,0,-3,-6,-8,-7,-8,0,0,0,0,14,0,0,0,13,13,13,5,14,8,8,0,0,0,0,0,0,0,0,0]} 1. e4 {[%emt 0:00:09]} e5 {[%emt 0:04:29]} 2. Nf3 {[%emt 0:00:32]} Nf6 {[%emt 0:00:24]} 3. Nxe5 {[%emt 0:01:09]} d6 {[%emt 0:00:44]} 4. Nf3 {[%emt 0:00:12]} Nxe4 {[%emt 0:00:06]} 5. d4 {[%emt 0:00:20]} d5 {[%emt 0:00:18]} 6. Bd3 {[%emt 0:00:07]} Nc6 {[%emt 0:00:13]} 7. O-O {[%emt 0:00:34]} Be7 {[%emt 0:00:14]} 8. Nbd2 {[%emt 0:06:38]} Bf5 $1 {[%emt 0:04:23][%mdl 4] is currently scoring better than 8...Nxd2.} 9. Re1 {[%emt 0:03:37][%cal Rd2e4]} Nxd2 {[%emt 0:00:33] C42: Petroff Defence: 3 Nxe5 and unusual White 3rd moves.} 10. Qxd2 {[%emt 0:00:25]} ({Much worse is} 10. Bxf5 Nxf3+ 11. gxf3 (11. Qxf3 Nxd4 12. Qh5 Nxf5 $17) 11... O-O $11) 10... Bg6 {[%emt 0:00:14]} 11. h3 {[%emt 0:06:38]} O-O {[%emt 0:07:37] White is slightly better.} 12. c3 {[%emt 0:07:13] [#]} Bd6 $146 {[%emt 0:05:02]} ({Predecessor:} 12... Qd6 13. Qc2 Bxd3 14. Qxd3 h6 15. Qf5 Rad8 16. Bf4 Qd7 17. Qxd7 Rxd7 18. Ne5 Nxe5 19. Bxe5 {½-½ Xue,Y (1671)-Zhao,Y (1458) CHN-chB (Women) 2019 (11)}) 13. Bxg6 {[%emt 0:03:36]} hxg6 {[%emt 0:03:54]} 14. Qd3 {[%emt 0:11:12]} Qd7 {[%emt 0:16:41]} 15. Ne5 {[%emt 0:04:09]} Bxe5 {[%emt 0:11:54]} 16. dxe5 {[%emt 0:00:05]} Rfe8 {[%emt 0:00:20]} 17. Bf4 {[%emt 0:02:16]} Rad8 {[%emt 0:06:59]} 18. Rad1 {[%emt 0:01:42]} a6 {[%emt 0:02:09]} 19. e6 {[%emt 0:05:27]} Rxe6 {[%emt 0:04:49]} 20. Rxe6 {[%emt 0:00:05]} fxe6 {[%emt 0:06:59]} 21. Qxg6 {[%emt 0:00:17]} Rf8 {[%emt 0:00:08]} 22. Bg3 {[%emt 0:01:26]} Rf6 {[%emt 0:05:51]} 23. Qg4 {[%emt 0:00:49]} Qf7 {[%emt 0:00:48]} 24. Re1 {[%emt 0:03:51]} Rg6 {[%emt 0:03:57]} 25. Qd1 {[%emt 0:01:08]} Rf6 {[%emt 0:05:59] [#]} ({Black should play} 25... Rh6 $14) 26. Qb3 $1 $16 {[%emt 0:03:26]} Na5 {[%emt 0:00:57]} 27. Qb4 {[%emt 0:00:42]} b6 {[%emt 0:00:01]} 28. b3 {[%emt 0:01:38] Prevents Nc4. White has more active pieces.} Nb7 {[%emt 0:02:57]} 29. Qa4 {[%emt 0:02:09]} (29. Qd4 $16) 29... Nc5 $11 {[%emt 0:01:06]} 30. Qc6 {[%emt 0:01:10]} Nd3 {[%emt 0:02:41]} (30... Ne4 $1 $11) 31. Re2 $1 $14 {[%emt 0:03:22]} e5 {[%emt 0:00:36][%cal Be6e5,Be5e4][%mdl 32]} 32. Qa8+ {[%emt 0:00:38]} Kh7 {[%emt 0:00:01]} 33. Qxa6 {[%emt 0:00:10]} e4 {[%emt 0:00:01] The position is equal.} 34. Qc8 {[%emt 0:07:43]} Qh5 {[%emt 0:02:58]} 35. Qg4 {[%emt 0:12:13]} Qxg4 {[%emt 0:00:17]} 36. hxg4 $11 {[%emt 0:00:04][%mdl 4096] Endgame KRB-KRN} Rc6 $1 {[%emt 0:00:04]} 37. f3 {[%emt 0:00:32]} exf3 {[%emt 0:01:56]} 38. gxf3 {[%emt 0:00:25]} Rxc3 {[%emt 0:00:02]} 39. Kg2 {[%emt 0:02:15]} d4 {[%emt 0:01:03]} 40. f4 {[%emt 0:00:59]} Nc5 {[%emt 0:00:31] [#] White must now prevent ...d3.} 41. Be1 {[%emt 0:09:34]} Rc1 {[%emt 0:11:40]} 42. Kf3 {[%emt 0:00:17]} Kg8 {[%emt 0:04:30]} 43. f5 {[%emt 0:17:39]} d3 {[%emt 0:13:40]} 44. Re3 {[%emt 0:00:07]} Rd1 {[%emt 0:00:05]} 45. Bb4 {[%emt 0:02:28] Strongly threatening Re8+.} Rf1+ {[%emt 0:01:21]} 46. Kg2 {[%emt 0:01:43]} Ra1 {[%emt 0:01:34] ...d2 is the strong threat.} 47. Kf3 {[%emt 0:02:39]} Rf1+ {[%emt 0:00:16]} 48. Kg2 {[%emt 0:00:11]} Ra1 {[%emt 0:00:05] Threatens to win with ...d2.} 49. Kf3 {[%emt 0:00:28] Weighted Error Value: White=0.08 (flawless) /Black=0.07 (flawless)} 1/2-1/2

[Event "51st Rilton Cup 2023-24"]
[Site "Stockholm"]
[Date "2024.01.05"]
[Round "9.6"]
[White "Jarmula, Lukasz"]
[Black "Gorshtein, Ido"]
[Result "1/2-1/2"]
[ECO "E21"]
[WhiteElo "2425"]
[BlackElo "2523"]
[Annotator "TA"]
[PlyCount "60"]
[EventDate "2023.12.27"]
[EventType "swiss"]
[EventCountry "SWE"]
[SourceTitle "playchess.com"]
[Source "ChessBase"]
[SourceQuality "1"]
[TimeControl "40/5400+30:1800+30"]

{[%evp 19,60,23,29,19,23,9,18,0,25,9,16,8,0,0,6,0,13,7,5,2,5,0,0,0,4,0,26,0,0,0,8,0,0,0,0,0,12,9,16,12,12,14,12]} 1. d4 {[%emt 0:00:03]} Nf6 {[%emt 0:00:11]} 2. c4 {[%emt 0:00:07]} e6 {[%emt 0:00:04]} 3. Nc3 {[%emt 0:00:07]} Bb4 {[%emt 0:00:03]} 4. Nf3 {[%emt 0:00:08]} b6 {[%emt 0:00:49]} 5. Bd2 {[%emt 0:00:56]} Bb7 {[%emt 0:00:09]} 6. e3 {[%emt 0:00:06]} O-O {[%emt 0:00:28]} 7. Bd3 {[%emt 0:00:05]} d6 {[%emt 0:01:55]} 8. O-O {[%emt 0:00:16]} Nbd7 {[%emt 0:00:21]} 9. a3 {[%emt 0:00:31]} Bxc3 {[%emt 0:00:09]} 10. Bxc3 {[%emt 0:00:05]} Ne4 {[%emt 0:01:37]} 11. Be1 $1 {[%emt 0:00:09] 11.Be1 is better than 11.Bxe4. E21: Nimzo-Indian: 4 Nf3.} c5 {[%emt 0:02:02]} 12. dxc5 {[%emt 0:07:35] [#]} Ndxc5 $146 {[%emt 0:05:44]} ({Predecessor:} 12... dxc5 13. Qc2 Ndf6 14. Nd2 Nxd2 15. Bxd2 Be4 16. Bxe4 Nxe4 17. Rad1 Nxd2 18. Rxd2 Qe7 {½-½ Mendonca,L (2490)-Szpar,M (2397) Pardubice Czech op-A 31st 2020 (4)}) 13. Be2 {[%emt 0:01:33]} Rc8 {[%emt 0:01:10]} 14. b4 {[%emt 0:06:46]} Nd7 {[%emt 0:01:39]} 15. a4 {[%emt 0:04:04]} (15. Nd4 {with more complications.} Qg5 16. f3 Qxe3+ 17. Kh1) 15... d5 {[%emt 0:04:38]} 16. cxd5 {[%emt 0:14:37]} Bxd5 {[%emt 0:00:04]} 17. Qd4 {[%emt 0:02:13]} Qf6 {[%emt 0:09:35]} 18. Qxf6 {[%emt 0:04:16]} Nexf6 {[%emt 0:01:06]} 19. Nd4 {[%emt 0:04:19]} Bc4 {[%emt 0:00:55]} 20. Bxc4 {[%emt 0:04:27]} Rxc4 {[%emt 0:01:15]} 21. a5 {[%emt 0:01:12]} Nd5 {[%emt 0:05:25]} 22. b5 {[%emt 0:04:39]} Nc7 {[%emt 0:06:59]} 23. axb6 {[%emt 0:07:24]} axb6 {[%emt 0:00:07] The position is equal.} 24. Ra7 {[%emt 0:00:38] [#] Hoping for Nc6.} Re8 {[%emt 0:06:08]} 25. Bd2 {[%emt 0:05:47]} Nf6 {[%emt 0:03:11]} 26. Rc1 {[%emt 0:03:19]} Rxc1+ {[%emt 0:09:20]} 27. Bxc1 {[%emt 0:00:09]} e5 {[%emt 0:00:47]} 28. Rxc7 {[%emt 0:04:21]} exd4 {[%emt 0:00:09]} 29. Kf1 {[%emt 0:01:25]} dxe3 {[%emt 0:02:29]} 30. Bxe3 {[%emt 0:01:07]} Nd5 {[%emt 0:00:09][%csl LRc7,LRe3] An uneventful encounter.   Weighted Error Value: White=0.05 (flawless) /Black=0.07 (flawless)} 1/2-1/2

[Event "51st Rilton Cup 2023-24"]
[Site "Stockholm"]
[Date "2024.01.05"]
[Round "9.7"]
[White "Rozentalis, Eduardas"]
[Black "Blomqvist, Erik"]
[Result "1/2-1/2"]
[ECO "C47"]
[WhiteElo "2454"]
[BlackElo "2521"]
[Annotator "TA"]
[PlyCount "27"]
[EventDate "2023.12.27"]
[EventType "swiss"]
[EventCountry "SWE"]
[SourceTitle "playchess.com"]
[Source "ChessBase"]
[SourceQuality "1"]
[TimeControl "40/5400+30:1800+30"]

{[%evp 16,27,12,6,22,0,0,0,0,0,0,0,0,0]} 1. e4 {[%emt 0:00:05]} e5 {[%emt 0:00:08]} 2. Nf3 {[%emt 0:01:09]} Nc6 {[%emt 0:00:07]} 3. Nc3 {[%emt 0:01:27]} Nf6 {[%emt 0:00:15]} 4. d4 {[%emt 0:01:20]} exd4 {[%emt 0:00:08]} 5. Nxd4 {[%emt 0:00:05]} Bb4 {[%emt 0:00:21]} 6. Nxc6 {[%emt 0:00:40]} bxc6 {[%emt 0:00:09]} 7. Bd3 {[%emt 0:00:05]} O-O {[%emt 0:00:32]} 8. O-O {[%emt 0:01:33]} Re8 {[%emt 0:01:39]} 9. Qf3 {[%emt 0:03:33] The position is equal.} h6 {[%emt 0:02:15] C47: Scotch Four Knights and Four Knights with 4 g3.} 10. Qg3 {[%emt 0:09:43]} Nh5 {[%emt 0:03:03]} 11. Qh3 {[%emt 0:05:26]} Nf6 {[%emt 0:00:29]} 12. Qg3 {[%emt 0:00:20]} Nh5 {[%emt 0:04:04] [#]} 13. Qh3 $146 {[%emt 0:01:07]} ({Predecessor:} 13. Qg4 Nf6 {½-½ Srbis,J (2451)-Kozak,A (2568) Mitropa Cup Mali Losinj 2023 (5.2)}) 13... Nf6 {[%emt 0:00:12]} 14. Qg3 {[%emt 0:00:15] A rather calm draw.   Weighted Error Value: White=0.05 (flawless) /Black=0.03 (flawless)} 1/2-1/2

[Event "51st Rilton Cup 2023-24"]
[Site "Stockholm"]
[Date "2024.01.05"]
[Round "9.8"]
[White "Subelj, Jan"]
[Black "Aoshima, Mirai"]
[Result "1-0"]
[ECO "A13"]
[WhiteElo "2512"]
[BlackElo "2367"]
[Annotator "TA"]
[PlyCount "59"]
[EventDate "2023.12.27"]
[EventType "swiss"]
[EventCountry "SWE"]
[SourceTitle "playchess.com"]
[Source "ChessBase"]
[SourceQuality "1"]
[TimeControl "40/5400+30:1800+30"]

{[%evp 14,59,8,3,6,0,49,43,47,40,49,0,0,0,0,0,73,51,121,118,122,115,114,116,108,85,141,144,145,135,156,156,253,253,254,254,254,254,350,362,362,345,364,356,364,345,1089,331]} 1. Nf3 {[%emt 0:00:17]} Nf6 {[%emt 0:00:17]} 2. c4 {[%emt 0:00:32]} e6 {[%emt 0:00:16]} 3. g3 {[%emt 0:00:35]} d5 {[%emt 0:00:21]} 4. Bg2 {[%emt 0:00:30]} d4 {[%emt 0:03:08]} 5. O-O {[%emt 0:03:43]} c5 {[%emt 0:01:10]} 6. e3 {[%emt 0:01:29]} Nc6 {[%emt 0:00:14]} 7. exd4 {[%emt 0:01:10]} cxd4 {[%emt 0:00:05]} 8. d3 {[%emt 0:00:10]} Be7 {[%emt 0:02:12] A13: English Opening: 1...e6.} 9. Bg5 {[%emt 0:07:54]} Nd7 {[%emt 0:02:30] now scores much better than the old 9...0-0.} (9... h6 $11 {was preferrable.} 10. Bf4 g5) 10. Bxe7 $14 {[%emt 0:00:16]} Qxe7 {[%emt 0:00:04] White is slightly better.} 11. Na3 {[%emt 0:00:21]} O-O {[%emt 0:03:53] [#]} 12. Nb5 $146 {[%emt 0:04:03]} (12. Nc2 $14 {is more appropriate.}) ({Predecessor:} 12. Re1 Rd8 13. Nc2 a5 14. b3 Nc5 15. Rb1 f6 16. a3 e5 17. b4 axb4 18. axb4 {0-1 Jurek,J (2273)-Nagy,G (2479) Staufer op 31st 2019 (6)}) 12... Rd8 $11 {[%emt 0:12:52]} 13. Nbxd4 {[%emt 0:02:39]} Nxd4 {[%emt 0:03:23]} 14. Nxd4 {[%emt 0:00:07]} Nc5 {[%emt 0:00:33]} (14... Nb6 $1 $11 15. Ne2 Nxc4) 15. Nb3 $16 {[%emt 0:00:27]} Rxd3 {[%emt 0:20:27]} (15... Nxd3 $14 16. Qe2 e5) 16. Qe2 {[%emt 0:01:10] [#] Black must now prevent Nxc5.} Nxb3 {[%emt 0:00:42]} 17. Qxd3 {[%emt 0:00:50]} Nxa1 {[%emt 0:00:04]} 18. Rxa1 {[%emt 0:01:11][%cal Bf1a1,Ba1e1,Be1e5,Be5e6][%mdl 32]} e5 {[%emt 0:02:15]} 19. Re1 {[%emt 0:02:20][%cal Oe1e5]} Be6 {[%emt 0:20:05]} ({Black should play} 19... f6) 20. Rxe5 {[%emt 0:01:27]} Qc7 {[%emt 0:00:28]} 21. Qd4 {[%emt 0:28:48] White has more active pieces.} Rd8 {[%emt 0:17:47]} 22. Bd5 {[%emt 0:03:55]} (22. Qxa7 $2 {perishes.} Qxe5 23. h3 h6 $19) 22... b5 {[%emt 0:07:46]} (22... Kf8 $16 23. a3 h6) 23. Qe4 $18 {[%emt 0:02:56]} ({Worse is} 23. cxb5 Qd6 24. Rxe6 (24. Rg5 $2 g6 $19) 24... Qxe6 25. Bxe6 Rxd4 $19) 23... bxc4 {[%emt 0:00:22]} 24. Bxe6 {[%emt 0:00:08]} fxe6 {[%emt 0:00:02]} 25. Rxe6 $40 {[%emt 0:00:07][%mdl 128] [#] Intending Re8+ and mate. KQR-KQR. White is out for blood.} Qb8 {[%emt 0:01:33]} 26. Qxc4 {[%emt 0:00:32][%cal Re6e8]} Kh8 {[%emt 0:00:03]} 27. Qe2 {[%emt 0:00:19]} h6 {[%emt 0:00:26]} 28. Qe5 {[%emt 0:02:25]} Rd1+ {[%emt 0:00:50]} 29. Kg2 {[%emt 0:00:05]} Qb7+ $2 {[%emt 0:00:06]} (29... Qxe5 30. Rxe5 Rd7) 30. Qe4 $2 {[%emt 0:00:05] Weighted Error Value: White=0.05 (flawless) /Black=0.29 (precise)} (30. f3 Rd2+ 31. Kg1 Rd1+ 32. Kf2 Rd2+ 33. Ke3 Rxh2 34. Qf5) 1-0

[Event "51st Rilton Cup 2023-24"]
[Site "Stockholm"]
[Date "2024.01.05"]
[Round "9.9"]
[White "Socko, Monika"]
[Black "Raja Rithvik R"]
[Result "0-1"]
[ECO "D02"]
[WhiteElo "2396"]
[BlackElo "2500"]
[Annotator "TA"]
[PlyCount "76"]
[EventDate "2023.12.27"]
[EventType "swiss"]
[EventCountry "SWE"]
[SourceTitle "playchess.com"]
[Source "ChessBase"]
[SourceQuality "1"]
[TimeControl "40/5400+30:1800+30"]

{[%evp 12,76,-5,-16,-14,-20,-12,-22,-13,-31,-24,-40,-28,-29,-18,-19,0,0,0,0,0,0,0,0,31,41,41,0,0,0,0,0,0,0,0,0,0,0,0,0,0,0,0,-73,0,-62,-62,-72,-67,-65,-37,-30,0,-412,-410,-375,-373,-12834,-12834,-12827,-12825,-5609,-445,-547,-547,-547,-536]} 1. d4 {[%emt 0:00:04]} d5 {[%emt 0:05:51]} 2. Nf3 {[%emt 0:00:09]} Nf6 {[%emt 0:00:35]} 3. g3 {[%emt 0:00:18]} e6 {[%emt 0:01:30]} 4. Bg2 {[%emt 0:00:10]} c5 {[%emt 0:00:17]} 5. O-O {[%emt 0:01:01]} Nc6 {[%emt 0:02:06]} 6. c3 {[%emt 0:03:18]} Be7 {[%emt 0:02:23]} 7. Nbd2 {[%emt 0:05:06]} cxd4 {[%emt 0:02:17] D02: 1 d4 d5 2 Nf3 sidelines, including 2...Nf6 3 g3 and 2...Nf6 3 Bf4.} 8. cxd4 {[%emt 0:01:27]} Qb6 {[%emt 0:00:05]} 9. Nb1 {[%emt 0:03:16][%cal Bd2b1,Bb1c3,Bc3a4][%mdl 32]} O-O {[%emt 0:06:04] The position is equal.} 10. Nc3 {[%emt 0:01:12]} Bd7 {[%emt 0:02:55]} 11. Na4 {[%emt 0:04:31] [#]} Qa6 $146 {[%emt 0:06:12][%cal Oc6d4]} ({Predecessor:} 11... Qb5 12. Nc3 Qa6 13. Bf4 Rfd8 14. Ne5 Be8 15. Nxc6 Bxc6 16. Qb3 b5 17. a3 Qb6 {0-1 Messmer,M (2260)-Roese,O Bundesliga 8889 1988 [8]}) 12. b3 {[%emt 0:06:13]} Ne4 {[%emt 0:05:33]} 13. Bb2 $1 {[%emt 0:01:47]} Rac8 {[%emt 0:14:47]} 14. Nd2 {[%emt 0:04:46]} b5 {[%emt 0:01:29] aiming for ...Nxd2.} 15. Nxe4 {[%emt 0:02:23]} bxa4 {[%emt 0:00:19]} 16. Nc5 {[%emt 0:01:06]} Bxc5 {[%emt 0:00:13]} 17. dxc5 {[%emt 0:00:03]} a3 {[%emt 0:00:41]} 18. Bc3 {[%emt 0:00:49] This pair of bishops is nice.} Qb5 {[%emt 0:00:27]} 19. e4 {[%emt 0:14:56]} Qxc5 {[%emt 0:11:34]} 20. exd5 {[%emt 0:08:18]} exd5 {[%emt 0:00:34]} (20... Qxc3 $2 21. Rc1 (21. dxc6 Bxc6 22. Rc1 Qxc1 $11) 21... Qb4 22. dxc6 $18) 21. Qxd5 {[%emt 0:07:33]} Qxc3 {[%emt 0:05:03]} 22. Qxd7 {[%emt 0:00:04]} Rfd8 {[%emt 0:00:35]} 23. Qb7 {[%emt 0:00:37] And now Rfc1 would win.} Nd4 {[%emt 0:08:41]} 24. Qxa7 {[%emt 0:01:31]} Qb2 {[%emt 0:01:11]} 25. Rab1 {[%emt 0:09:50]} Qxa2 {[%emt 0:02:07]} 26. Ra1 {[%emt 0:00:26]} Qd2 {[%emt 0:02:20]} 27. h4 {[%emt 0:15:13]} (27. Qa4 $11) 27... Nc2 {[%emt 0:03:14] Black is more active.} ({Of course not} 27... Nxb3 28. Rxa3 Nd4 29. Qb7 $11) (27... g6 $17) 28. Rad1 {[%emt 0:00:41]} Qxd1 $15 {[%emt 0:04:03]} 29. Rxd1 {[%emt 0:00:04]} Rxd1+ {[%emt 0:00:03]} 30. Kh2 {[%emt 0:00:02]} Rd2 {[%emt 0:05:23]} 31. b4 {[%emt 0:02:17]} Rxf2 {[%emt 0:02:37] Strongly threatening ...a2.} 32. b5 $2 {[%emt 0:02:17][%mdl 8192] [#]} (32. Qxf2 $2 {perishes.} a2 33. Qf5 Rf8 34. Qxc2 (34. Be4 $2 g6 $19) 34... a1=Q $19) (32. Kh3 $1 $11) 32... a2 $1 $19 {[%emt 0:00:31][%mdl 64] Deflection} 33. Qxa2 {[%emt 0:02:22] [#] Hoping for Kh3.} Ne3 $1 {[%emt 0:00:01][%csl LRa2,LRg2]} 34. Qa7 {[%emt 0:00:48]} (34. Qxf2 Ng4+ 35. Kg1 Nxf2 36. Kxf2) 34... Rxg2+ {[%emt 0:00:56] Black is clearly winning.} 35. Kh3 {[%emt 0:00:02]} Re2 {[%emt 0:03:41] ( -> ...h5)} 36. b6 {[%emt 0:02:06]} Rb2 {[%emt 0:01:35]} (36... Re1 $142 {[%cal Re1h1]} 37. Qb7 Rd8) 37. b7 {[%emt 0:00:36][%cal Rb7c8]} Re8 {[%emt 0:00:28]} 38. Qa4 {[%emt 0:00:48][%cal Ra4e8]} Rf8 {[%emt 0:00:31] Artfully played by Raja Rithvik R.   Weighted Error Value: White=0.45/Black=0.29 (precise)} 0-1

[Event "51st Rilton Cup 2023-24"]
[Site "Stockholm"]
[Date "2024.01.05"]
[Round "9.10"]
[White "Oratovsky, Michael"]
[Black "Utsab Chatterjee"]
[Result "1/2-1/2"]
[ECO "B51"]
[WhiteElo "2421"]
[BlackElo "2289"]
[Annotator "RC"]
[PlyCount "103"]
[EventDate "2023.12.27"]
[EventType "swiss"]
[EventCountry "SWE"]
[SourceTitle "playchess.com"]
[Source "ChessBase"]
[SourceQuality "1"]
[TimeControl "40/5400+30:1800+30"]

1. e4 {[%emt 0:02:12]} c5 {[%emt 0:00:11]} 2. Nf3 {[%emt 0:00:07]} d6 {[%emt 0:00:09]} 3. Bb5+ {[%emt 0:00:07]} Nd7 {[%emt 0:00:13]} 4. O-O {[%emt 0:00:09]} a6 {[%emt 0:00:07]} 5. Bd3 {[%emt 0:00:34]} Ngf6 {[%emt 0:00:11]} 6. Re1 {[%emt 0:00:07]} e6 {[%emt 0:00:15]} 7. c3 {[%emt 0:06:03]} b5 {[%emt 0:00:18]} 8. Bc2 {[%emt 0:00:06]} c4 {[%emt 0:00:15]} 9. b4 {[%emt 0:00:06]} Bb7 {[%emt 0:01:55]} 10. a4 {[%emt 0:00:06]} bxa4 {[%emt 0:05:20]} 11. Na3 {[%emt 0:06:27]} Qc7 {[%emt 0:01:11]} 12. Qe2 {[%emt 0:22:42]} Nb6 {[%emt 0:08:25]} 13. Bb2 {[%emt 0:16:11]} Be7 {[%emt 0:10:37]} 14. d3 {[%emt 0:15:08]} cxd3 {[%emt 0:00:15]} 15. Bxd3 {[%emt 0:00:18]} O-O {[%emt 0:02:09]} 16. c4 {[%emt 0:00:18]} Nbd7 {[%emt 0:00:49]} 17. Qc2 {[%emt 0:06:37]} a5 {[%emt 0:02:52]} 18. Nb5 {[%emt 0:01:12]} Qc8 {[%emt 0:00:17]} 19. bxa5 {[%emt 0:09:31]} Rxa5 {[%emt 0:05:32]} 20. Rxa4 {[%emt 0:03:49]} Rxa4 {[%emt 0:00:16]} 21. Qxa4 {[%emt 0:00:03]} Nc5 {[%emt 0:00:41]} 22. Qc2 {[%emt 0:00:06]} Rd8 {[%emt 0:02:07]} 23. Nd2 {[%emt 0:01:50]} Nxd3 {[%emt 0:07:51]} 24. Qxd3 {[%emt 0:00:07]} Ba6 {[%emt 0:00:07]} 25. h3 {[%emt 0:05:01]} d5 {[%emt 0:04:22]} 26. exd5 {[%emt 0:02:35]} Bxb5 {[%emt 0:00:07]} 27. cxb5 {[%emt 0:01:49]} Rxd5 {[%emt 0:00:01]} 28. Qe2 {[%emt 0:00:36]} Qc2 {[%emt 0:01:11]} 29. Ne4 {[%emt 0:00:29]} Qxe4 {[%emt 0:00:56]} 30. Qxe4 {[%emt 0:00:11]} Nxe4 {[%emt 0:00:01]} 31. Rxe4 {[%emt 0:00:16]} Rxb5 {[%emt 0:00:01]} 32. Re2 {[%emt 0:00:42]} h5 {[%emt 0:00:22]} 33. g3 {[%emt 0:00:30]} g5 {[%emt 0:00:59]} 34. Rc2 {[%emt 0:00:34]} f6 {[%emt 0:02:23]} 35. Rc7 {[%emt 0:00:31]} Kf8 {[%emt 0:00:02]} 36. Bd4 {[%emt 0:00:19]} e5 {[%emt 0:01:23]} 37. Be3 {[%emt 0:00:02]} f5 {[%emt 0:03:02]} 38. Kg2 {[%emt 0:00:10]} Ke8 {[%emt 0:03:26]} 39. Bd2 {[%emt 0:01:29]} Rd5 {[%emt 0:01:26]} 40. Bc1 {[%emt 0:00:43]} Rd3 {[%emt 0:08:39]} 41. Bb2 {[%emt 0:15:18]} e4 {[%emt 0:07:55]} 42. Bc1 {[%emt 0:00:49]} Kd8 {[%emt 0:15:42]} 43. Ra7 {[%emt 0:07:25]} Rd5 {[%emt 0:08:34]} 44. Be3 {[%emt 0:03:46]} Ke8 {[%emt 0:00:28]} 45. Bc1 {[%emt 0:01:11]} Kf8 {[%emt 0:01:31]} 46. Rc7 {[%emt 0:01:24]} Bf6 {[%emt 0:09:12]} 47. Ba3+ {[%emt 0:01:26]} Kg8 {[%emt 0:00:15]} 48. Rc5 {[%emt 0:00:30]} Rxc5 {[%emt 0:06:48]} 49. Bxc5 {[%emt 0:00:05]} Kf7 {[%emt 0:00:04]} 50. g4 {[%emt 0:01:40]} hxg4 {[%emt 0:06:16]} 51. hxg4 {[%emt 0:00:07]} f4 {[%emt 0:00:00]} 52. f3 {[%emt 0:00:10]} 1/2-1/2

[Event "51st Rilton Cup 2023-24"]
[Site "Stockholm"]
[Date "2024.01.05"]
[Round "9.11"]
[White "Rakesh Kumar Jena"]
[Black "Hillarp Persson, Tiger"]
[Result "1/2-1/2"]
[ECO "D00"]
[WhiteElo "2335"]
[BlackElo "2493"]
[Annotator "TA"]
[PlyCount "25"]
[EventDate "2023.12.27"]
[EventType "swiss"]
[EventCountry "SWE"]
[SourceTitle "playchess.com"]
[Source "ChessBase"]
[SourceQuality "1"]
[TimeControl "40/5400+30:1800+30"]

{[%evp 13,25,0,0,0,0,0,8,0,0,0,0,0,0,0]} 1. d4 {[%emt 0:00:05]} Nf6 {[%emt 0:00:09]} 2. Bf4 {[%emt 0:00:06]} g6 {[%emt 0:00:06]} 3. Nc3 {[%emt 0:00:05]} d5 {[%emt 0:00:06]} 4. Nf3 {[%emt 0:00:06]} Bg7 {[%emt 0:00:06]} 5. e3 {[%emt 0:00:05]} O-O {[%emt 0:00:08]} 6. Be2 {[%emt 0:00:07]} c5 {[%emt 0:00:14]} 7. dxc5 {[%emt 0:00:06]} Qa5 {[%emt 0:00:23] The position is equal.} 8. O-O {[%emt 0:00:24] D00: 1 d4 d5: Unusual lines.} Qxc5 {[%emt 0:02:19]} 9. Nb5 {[%emt 0:00:08]} Nc6 {[%emt 0:21:34] [#]} 10. Nc7 $146 {[%emt 0:01:49] Inhibits Ne8.} ({Predecessor:} 10. c3 Ne8 11. b4 Qb6 12. Qxd5 e5 13. Bg3 Be6 14. Qc5 Qxc5 15. bxc5 f6 16. Nd2 f5 17. Bc4 Kf7 18. Rfd1 {½-½ Wirthensohn,H (2406)-Mandel,A (2391) Oberliga Baden 0708 2007 (5.1)}) 10... Rb8 {[%emt 0:00:08]} 11. Nb5 {[%emt 0:00:05] aiming for c3.} Ra8 {[%emt 0:01:17]} 12. Nc7 {[%emt 0:00:08] Against Ne8} Rb8 {[%emt 0:01:00]} 13. Nb5 {[%emt 0:16:58] Not much happened in this game.   Weighted Error Value: White=0.02 (flawless) /Black=0.02 (flawless)} 1/2-1/2